bitfinex/quotes_ETHUSD_20240614
["timestamp","ask_amount","ask_price","bid_price","bid_amount"]
[1718393739217,0.25593353,3398.2,3397.7,2.94315]
[1718393739779,0.885,3398.1,3397.7,2.94315]
[1718393741813,0.25593353,3398.2,3397.7,2.94315]
[1718393741979,0.25593353,3398.2,3397.8,2.94303]
[1718393742309,0.25593353,3398.2,3397.8,3.620148]
[1718393742900,0.07042831,3398.1,3397.8,3.620148]
[1718393743089,0.07042831,3398.1,3397.8,2.94303]
[1718393743613,0.07042831,3398.1,3397.9,2.94297]
[1718393743774,0.07042831,3398.1,3397.8,2.94303]
[1718393744473,0.07042831,3398.1,3398.0,10.5967]
[1718393745010,3.45032751,3399.6,3398.8,2.94218]
[1718393745216,6.4268,3399.7,3399.1,2.94193]
[1718393745398,0.885,3399.9,3398.9,2.94212]
[1718393745604,2.94119,3400.0,3399.2,2.94179]
[1718393745804,2.94119,3400.0,3399.1,2.94193]
[1718393745805,0.885,3399.9,3399.3,2.94177]
[1718393746113,0.885,3399.9,3399.2,2.94185]
[1718393746712,0.885,3399.7,3399.2,2.94185]
[1718393748477,0.885,3399.7,3399.1,2.94194]
[1718393750379,0.885,3399.5,3399.0,2.94203]
[1718393750883,2.9415,3399.7,3399.1,2.94195]
[1718393751079,0.885,3399.6,3399.1,2.94195]
[1718393751719,0.885,3399.4,3399.0,2.94203]
[1718393752282,0.885,3399.4,3398.9,2.94212]
[1718393752283,0.885,3399.4,3398.9,2.94211]
[1718393752479,0.885,3399.4,3398.8,2.94219]
[1718393752812,0.885,3399.4,3398.9,2.94209]
[1718393753881,0.885,3399.4,3398.8,2.9422]
[1718393755145,3.8267,3399.4,3398.8,2.9422]
[1718393755356,0.885,3399.4,3398.9,2.94211]
[1718393755506,2.94162,3399.5,3398.9,2.94211]
[1718393756536,3.82654,3399.6,3398.9,2.94211]
[1718393757649,0.06043239,3399.5,3398.9,2.94211]
[1718393760219,0.885,3399.4,3398.9,2.94211]
[1718393760564,0.885,3399.0,3398.4,2.94248]
[1718393760855,0.885,3398.6,3398.1,1.768]
[1718393761151,0.885,3398.6,3398.2,2.9427]
[1718393761352,0.885,3398.6,3398.1,4.7108]
[1718393761563,0.885,3398.4,3398.1,1.768]
[1718393761765,0.885,3398.4,3397.8,4.71106]
[1718393761984,0.885,3398.2,3397.8,1.768]
[1718393762632,0.885,3398.0,3397.5,4.71132]
[1718393762831,0.05988989,3398.1,3397.5,4.71132]
[1718393763092,0.05973285,3397.9,3397.5,4.71132]
[1718393763372,0.05965508,3397.8,3397.6,2.94322]
[1718393763545,2.9428,3398.2,3397.6,2.94322]
[1718393763871,2.122,3398.7,3398.1,2.9428]
[1718393763872,2.94231,3398.7,3398.1,2.9428]
[1718393764074,2.94231,3398.7,3398.0,2.94289]
[1718393764363,2.94238,3398.6,3398.0,2.94289]
[1718393764671,2.94187,3399.2,3398.4,2.94248]
[1718393764873,2.122,3399.6,3398.3,2.94262]
[1718393764874,2.9421,3399.0,3398.3,2.94263]
[1718393765171,2.94196,3399.1,3398.3,2.94263]
[1718393765427,2.94179,3399.3,3398.5,2.94245]
[1718393765550,2.94179,3399.3,3398.6,2.94235]
[1718393767359,2.94179,3399.3,3398.7,2.94229]
[1718393767767,2.94188,3399.2,3398.6,2.94237]
[1718393768673,2.9418,3399.3,3398.7,2.94229]
[1718393770505,11.0276,3399.8,3399.1,2.94187]
[1718393770673,8.9056,3399.8,3399.2,2.94183]
[1718393771048,8.9056,3399.8,3399.3,2.94176]
[1718393771252,0.25227705,3400.2,3399.8,2.9413]
[1718393771989,0.25227705,3400.2,3399.9,2.94123]
[1718393772554,0.05460945,3400.1,3400.0,2.94112]
[1718393773179,0.05460945,3400.1,3400.0,7.65029]
[1718393773391,0.005,3400.2,3400.1,5.88216]
[1718393777112,0.005,3400.2,3400.1,2.94108]
[1718393779238,0.005,3400.2,3399.5,2.94152]
[1718393779239,0.05811894,3400.2,3399.7,1.768]
[1718393779437,0.05811894,3400.2,3399.2,2.94186]
[1718393779577,2.94121,3400.0,3399.3,2.94171]
[1718393779777,0.05341412,3399.9,3399.3,4.555267]
[1718393780386,0.05341412,3399.9,3399.4,2.94162]
[1718393780714,2.94109,3400.1,3399.4,2.94162]
[1718393780891,0.05348749,3399.8,3399.4,2.94162]
[1718393781090,2.94109,3400.1,3399.4,2.94162]
[1718393781299,0.05345549,3399.7,3399.4,2.94162]
[1718393781494,2.94109,3400.1,3399.4,3.8681087]
[1718393781705,0.05338253,3399.6,3399.5,2.94159]
[1718393781905,2.94109,3400.1,3399.5,2.94159]
[1718393782106,2.94602,3400.2,3399.5,2.94159]
[1718393782417,0.05422561,3400.1,3399.5,2.94159]
[1718393782639,0.05422561,3400.1,3399.6,2.9415]
[1718393784795,2.99532561,3400.1,3399.5,3.79935787]
[1718393784997,2.99532561,3400.1,3399.5,2.94158]
[1718393785202,2.94126,3399.9,3399.1,4.70993]
[1718393785403,2.94126,3399.9,3398.9,6.4234]
[1718393785404,2.94152,3399.6,3398.8,2.94221]
[1718393785722,2.94152,3399.6,3399.0,2.94203]
[1718393785928,0.05311432,3399.5,3399.0,2.94203]
[1718393786089,0.05311432,3399.5,3398.7,3.530766]
[1718393786426,2.9418,3399.3,3398.7,3.530766]
[1718393786721,2.99431996,3399.4,3398.8,2.9422]
[1718393786893,0.05192667,3399.2,3398.8,2.9422]
[1718393787093,0.05199185,3399.3,3398.8,3.7663056]
[1718393787426,0.05194836,3399.2,3398.8,3.7663056]
[1718393787723,2.94171,3399.4,3398.8,3.7663056]
[1718393787907,0.05189466,3399.1,3398.8,3.7663056]
[1718393788111,2.94171,3399.4,3398.8,3.7663056]
[1718393788313,0.05188435,3399.0,3398.8,2.9422]
[1718393788494,2.94171,3399.4,3398.8,2.9422]
[1718393788692,0.05185234,3398.9,3398.8,2.9422]
[1718393788897,2.94171,3399.4,3398.8,2.9422]
[1718393789426,0.05195868,3399.3,3398.8,2.9422]
[1718393789994,0.05195868,3399.3,3398.8,3.7662966]
[1718393790193,2.99379868,3399.3,3398.8,0.8240966]
[1718393790423,2.94204,3399.0,3398.3,4.71062]
[1718393790824,0.05179676,3398.9,3398.3,4.71062]
[1718393791035,2.99392676,3398.9,3398.3,4.71062]
[1718393791597,0.05179676,3398.9,3398.3,4.71062]
[1718393791845,0.05179676,3398.9,3398.4,2.94252]
[1718393792043,2.94197,3399.1,3398.5,0.765314]
[1718393792355,0.05172939,3398.8,3398.5,3.707784]
[1718393792649,0.05171514,3398.7,3398.5,3.707784]
[1718393792863,7.31,3400.5,3398.6,1.82684558]
[1718393793073,3.49145,3399.7,3399.0,2.94196]
[1718393793344,2.94147,3399.7,3399.1,3.530336]
[1718393793563,2.94147,3399.7,3398.8,4.71013]
[1718393793730,2.94137,3399.8,3399.1,2.94192]
[1718393793933,2.94137,3399.8,3399.2,2.94185]
[1718393794139,2.94126,3399.9,3399.3,2.94177]
[1718393794444,2.94126,3399.9,3399.0,2.94203]
[1718393796050,2.94143,3399.7,3399.1,2.94193]
[1718393798609,2.94167,3399.5,3398.5,8.075314]
[1718393798813,2.94144,3399.7,3398.6,2.8697834]
[1718393798814,2.94169,3399.4,3398.6,2.8697834]
[1718393799031,2.94144,3399.7,3398.4,2.94252]
[1718393799032,2.94197,3399.1,3398.4,2.94252]
[1718393800061,2.94197,3399.1,3398.5,2.94247]
[1718393801156,9.01466,3399.1,3398.2,1.768]
[1718393801355,2.94214,3398.9,3398.3,2.94264]
[1718393802350,2.94222,3398.8,3398.2,4.71072]
[1718393802516,2.99149588,3398.8,3398.2,4.71072]
[1718393805578,0.04927588,3398.8,3397.7,7.31]
[1718393805767,2.94242,3398.6,3397.9,2.94296]
[1718393805964,2.94263,3398.4,3397.8,1.623546]
[1718393806290,0.04902751,3398.3,3397.8,1.623546]
[1718393807403,0.04902751,3398.3,3397.9,1.6587936]
[1718393807697,2.94249,3398.5,3397.9,1.6587936]
[1718393807848,0.0490595,3398.4,3397.9,1.6587936]
[1718393808053,0.0490595,3398.4,3397.9,4.6017736]
[1718393808981,2.9424,3398.6,3397.9,4.6017736]
[1718393808982,2.94248,3398.5,3397.9,4.6017736]
[1718393809158,0.04884062,3398.3,3397.9,4.6017736]
[1718393809359,0.04899448,3398.4,3398.0,0.91684696]
[1718393809560,2.9424,3398.6,3398.0,0.91684696]
[1718393809561,0.04893049,3398.2,3398.0,0.91684696]
[1718393809775,2.9424,3398.6,3398.0,0.91684696]
[1718393809982,0.0488985,3398.1,3398.0,0.91684696]
[1718393810181,2.9424,3398.6,3398.0,0.91684696]
[1718393810485,3.0,3399.6,3398.2,4.71069]
[1718393810719,0.0491012,3399.0,3398.4,2.94253]
[1718393811229,0.0491012,3399.0,3398.5,2.94246]
[1718393811730,0.0491012,3399.0,3398.1,0.8426443]
[1718393811930,2.94224,3398.8,3398.2,2.94271]
[1718393812241,0.04873727,3398.7,3398.2,2.94271]
[1718393812854,2.94239,3398.6,3398.0,2.94284]
[1718393813001,0.04889548,3398.5,3398.0,3.8705776]
[1718393814219,2.94239,3398.6,3398.0,0.9277376]
[1718393814433,0.04873843,3398.5,3398.0,0.9277376]
[1718393814641,0.04873843,3398.5,3398.0,3.8706276]
[1718393816324,0.04873843,3398.5,3397.8,2.94307]
[1718393816537,2.94257,3398.4,3397.8,2.94307]
[1718393816959,0.04867327,3398.3,3397.8,2.94307]
[1718393818843,2.94249,3398.5,3397.9,2.94299]
[1718393819047,0.04870527,3398.4,3397.9,2.94299]
[1718393821068,2.99126527,3398.4,3397.4,1.768]
[1718393821248,2.94271,3398.3,3397.7,2.94313]
[1718393821447,0.04862255,3398.2,3397.7,2.94313]
[1718393822742,0.04862255,3398.2,3397.4,2.94336]
[1718393822933,2.94299,3397.9,3397.3,2.94349]
[1718393823370,0.04832351,3397.8,3397.3,2.94349]
[1718393824367,0.04832351,3397.8,3397.1,7.31]
[1718393824368,2.99140351,3397.8,3397.1,7.31]
[1718393824574,0.04832351,3397.8,3397.0,2.94377]
[1718393825077,2.98951163,3397.7,3397.0,2.94377]
[1718393825283,2.94327,3397.6,3397.0,2.94377]
[1718393825440,0.04628761,3397.5,3397.0,2.94377]
[1718393825635,0.04628761,3397.5,3396.8,1.768]
[1718393825846,2.94343,3397.4,3396.8,4.71193]
[1718393826068,2.94326,3397.6,3396.8,4.71193]
[1718393826069,0.04622358,3397.3,3396.8,4.71193]
[1718393826255,2.94326,3397.6,3396.8,4.71193]
[1718393826583,0.04620253,3397.5,3396.8,4.71193]
[1718393827072,2.94343,3397.4,3396.8,4.71193]
[1718393827269,0.0461385,3397.3,3396.8,4.71193]
[1718393827449,0.0461385,3397.3,3396.7,2.94401]
[1718393827450,2.9896585,3397.3,3396.7,2.94401]
[1718393827651,2.9896585,3397.3,3396.6,4.7121]
[1718393827878,2.9896585,3397.3,3396.6,6.80492]
[1718393828290,2.94368,3397.2,3396.6,2.09282]
[1718393828577,2.94386,3396.9,3396.3,2.94436]
[1718393828964,0.0447704,3396.8,3396.3,2.94436]
[1718393830648,0.0447704,3396.8,3395.6,9.018]
[1718393830649,2.94437,3396.4,3395.8,2.9448]
[1718393830850,2.94437,3396.4,3395.7,1.768]
[1718393830851,2.98889459,3396.3,3395.7,4.71289]
[1718393831066,2.98889459,3396.3,3395.5,3.40570872]
[1718393831067,2.98889459,3396.3,3395.5,2.94505]
[1718393831287,2.94447,3396.2,3395.6,3.53399]
[1718393831471,0.04417487,3396.1,3395.6,3.53399]
[1718393831885,2.94439,3396.3,3395.6,3.53399]
[1718393832093,0.04436372,3396.2,3395.6,3.53399]
[1718393832272,0.04436372,3396.2,3395.6,0.58902]
[1718393832591,2.94412,3396.6,3395.9,2.9447]
[1718393832759,2.94412,3396.6,3396.0,2.94463]
[1718393832969,2.98827522,3396.5,3395.9,2.94471]
[1718393833363,2.98827522,3396.5,3395.8,7.8127]
[1718393833364,2.9443,3396.4,3395.8,4.7128]
[1718393833686,2.98835616,3396.3,3395.7,2.94488]
[1718393834269,0.04396616,3396.3,3395.8,2.94481]
[1718393834454,2.94421,3396.5,3395.8,2.94481]
[1718393834789,0.0440837,3396.4,3395.8,2.94481]
[1718393834959,2.9883937,3396.4,3395.8,2.94481]
[1718393835167,0.0440837,3396.4,3396.2,2.94446]
[1718393835734,12.30601,3397.2,3396.6,2.94404]
[1718393835901,2.94369,3397.1,3396.5,2.94418]
[1718393836452,2.94369,3397.1,3396.2,1.768]
[1718393836453,9.30601,3397.2,3396.6,2.94412]
[1718393836999,2.94388,3396.9,3396.2,4.71241]
[1718393837282,2.94388,3396.9,3396.3,2.94435]
[1718393837903,2.94369,3397.1,3396.3,2.94435]
[1718393837904,5.88745,3397.1,3396.4,2.94427]
[1718393838098,5.88745,3397.1,3396.5,2.94418]
[1718393838099,2.94369,3397.1,3396.5,2.94418]
[1718393838654,9.306,3397.2,3396.4,2.94427]
[1718393838655,6.3624,3397.2,3396.4,2.94427]
[1718393838855,9.30601,3397.2,3396.6,2.94411]
[1718393839601,9.30601,3397.2,3396.5,2.94418]
[1718393841290,9.30601,3397.2,3396.6,2.9441]
[1718393841609,2.94361,3397.2,3396.6,2.9441]
[1718393841822,8.921,3397.6,3396.6,3.532938]
[1718393842056,5.921,3397.6,3397.1,2.94367]
[1718393842309,2.9431,3397.8,3397.1,2.9436]
[1718393842518,3.0,3397.7,3397.1,2.9436]
[1718393842906,3.0,3397.7,3397.0,2.94377]
[1718393843082,3.0,3397.7,3397.2,2.94359]
[1718393843582,2.9431,3397.8,3397.2,2.94359]
[1718393843781,10.57665514,3397.7,3396.6,2.9441]
[1718393844013,2.94351,3397.3,3396.6,2.9441]
[1718393844186,2.94362,3397.2,3396.5,2.94419]
[1718393844813,2.94371,3397.1,3396.5,2.94419]
[1718393845405,2.94379,3397.0,3396.4,2.94427]
[1718393846120,9.53984,3396.9,3396.1,1.768]
[1718393846321,9.53984,3396.9,3396.0,1.768]
[1718393846483,2.94403,3396.7,3396.1,2.94454]
[1718393846683,0.04318943,3396.6,3396.1,2.94454]
[1718393850020,0.04318943,3396.6,3396.0,6.80529769]
[1718393850021,0.04318943,3396.6,3396.2,2.94446]
[1718393850333,2.94396,3396.8,3396.2,2.94446]
[1718393850620,0.03970004,3396.5,3396.2,2.94446]
[1718393850818,2.94396,3396.8,3396.3,0.97496677]
[1718393851014,0.03956841,3396.4,3396.2,2.94446]
[1718393851187,2.94396,3396.8,3396.2,2.94446]
[1718393851396,0.03826211,3396.3,3396.2,2.94446]
[1718393851631,5.9394,3397.4,3396.9,2.94383]
[1718393852142,3.00526776,3397.7,3396.9,2.94383]
[1718393852143,2.94325,3397.6,3397.0,2.94376]
[1718393852294,3.00526776,3397.7,3397.1,2.94362]
[1718393852492,3.00526776,3397.7,3396.8,4.7119]
[1718393852731,3.00526776,3397.7,3397.0,2.94377]
[1718393852944,5.94844776,3397.7,3397.1,2.94367]
[1718393853431,5.94844776,3397.7,3397.6,2.94325]
[1718393853432,0.00526776,3397.7,3397.6,2.94325]
[1718393853586,0.00526776,3397.7,3397.2,1.82687255]
[1718393853587,0.00526776,3397.7,3397.5,2.94332]
[1718393860846,2.94283,3398.1,3397.5,2.94332]
[1718393862642,0.0354092,3398.0,3397.5,2.94332]
[1718393863344,0.0354092,3398.0,3397.6,2.94325]
[1718393869061,0.0354092,3398.0,3397.4,2.94341]
[1718393869267,0.0354092,3398.0,3397.6,2.94319]
[1718393869581,0.03539718,3397.9,3397.8,2.94308]
[1718393870073,5.9394,3398.4,3397.9,2.94295]
[1718393870642,2.94225,3398.8,3398.2,2.94267]
[1718393870643,6.4375,3398.8,3398.2,2.94267]
[1718393870939,3.0,3398.7,3398.2,2.94267]
[1718393871271,6.4375,3398.8,3398.3,2.94263]
[1718393871465,6.4375,3398.8,3398.4,2.94252]
[1718393871962,0.233932,3398.9,3398.5,2.94246]
[1718393873659,0.233932,3398.9,3398.7,2.9423]
[1718393875188,0.233932,3398.9,3398.8,2.94221]
[1718393876575,0.233932,3398.9,3398.8,5.88442]
[1718393877456,0.27038336,3398.9,3398.8,5.88442]
[1718393877857,0.27038336,3398.9,3398.6,2.94232]
[1718393878081,0.27038336,3398.9,3398.4,2.94249]
[1718393878475,0.27038336,3398.9,3398.5,2.94241]
[1718393879465,0.27038336,3398.9,3398.4,2.94249]
[1718393879466,6.61118336,3398.9,3398.1,2.94279]
[1718393879671,2.94256,3398.4,3397.7,2.94309]
[1718393879894,2.94256,3398.4,3397.8,2.94307]
[1718393880092,0.03666442,3398.3,3397.8,2.94307]
[1718393880307,0.03666442,3398.3,3397.9,2.94297]
[1718393880593,2.94257,3398.4,3397.8,2.94305]
[1718393880783,0.03661574,3398.2,3397.8,2.94305]
[1718393880970,0.03664774,3398.3,3397.8,2.94305]
[1718393881311,2.97931774,3398.3,3397.7,2.94316]
[1718393881757,0.03664774,3398.3,3397.8,2.94307]
[1718393882200,0.03664774,3398.3,3398.0,2.9429]
[1718393882388,0.03664774,3398.3,3398.2,2.94273]
[1718393882593,5.94223,3398.8,3398.2,2.94273]
[1718393882802,0.03664774,3398.3,3398.2,2.94273]
[1718393882965,5.94223,3398.8,3398.2,2.94273]
[1718393883174,0.03656481,3398.3,3398.2,2.94273]
[1718393883376,2.9423,3398.7,3398.1,2.94281]
[1718393883572,2.9423,3398.7,3397.9,2.94298]
[1718393883573,2.97906422,3398.6,3397.9,2.94298]
[1718393883878,2.94265,3398.3,3397.5,0.471141]
[1718393884090,2.94275,3398.2,3397.6,2.94324]
[1718393884383,2.97936574,3398.2,3397.6,2.94324]
[1718393885482,2.94291,3398.0,3397.4,2.9434]
[1718393886127,0.0364408,3397.9,3397.5,2.94333]
[1718393886327,0.0364408,3397.9,3397.6,2.94322]
[1718393886486,0.03632586,3397.8,3397.6,2.94322]
[1718393886829,2.94275,3398.2,3397.6,2.94322]
[1718393887002,0.03632703,3397.7,3397.6,2.94322]
[1718393887297,2.94275,3398.2,3397.6,2.94322]
[1718393887504,0.03645504,3398.1,3397.6,2.94322]
[1718393889927,0.03645504,3398.1,3397.2,1.768]
[1718393890232,2.9434,3397.5,3396.8,2.94394]
[1718393890401,2.94298,3398.0,3397.2,2.94358]
[1718393890603,0.03578672,3397.4,3397.3,2.94344]
[1718393890831,3.49281,3398.2,3397.3,2.94344]
[1718393890832,2.94299,3397.9,3397.3,2.94344]
[1718393891133,2.94299,3397.9,3397.4,2.94342]
[1718393891134,0.03581232,3397.8,3397.4,2.94342]
[1718393891514,0.03581232,3397.8,3397.5,2.9433]
[1718393891720,6.2825,3398.1,3397.7,2.94313]
[1718393892123,0.03577412,3398.0,3397.7,2.94313]
[1718393892463,6.0814,3398.5,3398.0,2.94283]
[1718393894336,9.02388,3398.5,3397.9,2.94298]
[1718393896496,2.94257,3398.4,3397.8,2.94306]
[1718393896701,9.02389,3398.5,3397.9,2.94298]
[1718393896937,2.94271,3398.3,3397.3,2.94347]
[1718393897107,2.94282,3398.1,3397.5,2.94327]
[1718393898660,2.94292,3398.0,3397.4,2.94341]
[1718393901809,2.94292,3398.0,3397.5,2.94333]
[1718393902142,2.94284,3398.1,3397.5,3.23691384]
[1718393904345,2.94284,3398.1,3397.5,2.94333]
[1718393906344,2.9429,3398.0,3397.5,2.94333]
[1718393906548,2.94274,3398.2,3397.0,1.768]
[1718393906843,2.94334,3397.5,3396.8,2.94393]
[1718393907034,2.94344,3397.4,3396.8,2.94393]
[1718393907353,2.94344,3397.4,3396.8,4.44158]
[1718393907857,0.03319975,3397.3,3396.8,4.44158]
[1718393908760,0.03319975,3397.3,3396.8,2.94393]
[1718393911456,0.03319975,3397.3,3396.6,2.94409]
[1718393911694,2.94388,3396.9,3396.3,4.71235]
[1718393911830,2.94402,3396.8,3396.3,1.768]
[1718393912024,2.97680603,3396.8,3396.3,1.768]
[1718393912267,2.97680603,3396.8,3396.1,2.94455]
[1718393912268,2.94406,3396.7,3396.1,2.94455]
[1718393912423,2.97680603,3396.8,3396.0,1.768]
[1718393912623,0.03252957,3396.6,3396.0,1.768]
[1718393912823,2.94402,3396.8,3395.9,2.94468]
[1718393912824,2.94421,3396.5,3395.9,2.94468]
[1718393913067,2.97683717,3396.5,3395.8,2.94479]
[1718393913290,2.97683717,3396.5,3395.9,2.9447]
[1718393913571,0.03262717,3396.5,3396.0,2.9446]
[1718393914862,2.97685717,3396.5,3395.9,2.94472]
[1718393915282,2.94431,3396.4,3395.8,2.9448]
[1718393915459,2.94431,3396.4,3395.6,2.94497]
[1718393915641,0.03172611,3396.3,3395.5,4.71307]
[1718393915829,0.03172611,3396.3,3395.5,5.478897]
[1718393916551,2.94447,3396.2,3395.6,2.94491]
[1718393916859,0.03181148,3396.1,3395.7,2.94489]
[1718393917374,2.94439,3396.3,3395.7,2.94489]
[1718393917573,0.03177944,3396.0,3395.7,2.94489]
[1718393917987,0.03161439,3395.9,3395.7,2.94489]
[1718393918343,2.94439,3396.3,3395.7,2.94489]
[1718393918678,0.03171053,3396.2,3395.7,2.94489]
[1718393919549,2.94465,3396.0,3395.4,2.94514]
[1718393919878,0.03161439,3395.9,3395.4,2.94514]
[1718393924197,0.03161439,3395.9,3395.4,4.441979]
[1718393925160,2.97635439,3395.9,3395.4,1.496839]
[1718393925360,2.9449,3395.7,3395.1,2.9454]
[1718393925587,0.03151824,3395.6,3395.0,4.71342]
[1718393925882,2.94474,3395.9,3395.0,4.71342]
[1718393926190,0.03158235,3395.8,3395.0,4.71342]
[1718393926791,2.97645235,3395.8,3395.2,2.94533]
[1718393932990,2.97645235,3395.8,3394.9,1.768]
[1718393932991,0.03158235,3395.8,3395.0,2.94549]
[1718393933193,2.94516,3395.4,3394.7,4.7137]
[1718393933393,2.94527,3395.3,3394.7,4.7137]
[1718393933596,2.97245376,3395.3,3394.7,4.7137]
[1718393933902,2.97245376,3395.3,3394.7,2.9457]
[1718393934285,2.94539,3395.2,3394.6,10.25584]
[1718393934609,0.02679993,3395.1,3394.6,10.25584]
[1718393936913,0.02679993,3395.1,3394.6,2.94584]
[1718393937504,0.02679993,3395.1,3394.8,2.94568]
[1718393937904,8.75028,3395.5,3394.8,2.94568]
[1718393938099,0.02672402,3395.0,3394.8,2.94568]
[1718393938305,8.75028,3395.5,3394.9,2.94555]
[1718393938507,5.8052,3395.5,3394.9,2.94555]
[1718393938799,5.7824,3396.0,3395.4,2.9451]
[1718393939004,5.7824,3396.0,3395.5,2.94499]
[1718393940038,8.7271,3396.0,3395.3,2.94516]
[1718393940223,8.7271,3396.0,3395.2,2.94532]
[1718393940224,2.94491,3395.7,3395.2,2.94532]
[1718393940434,1.43344514,3395.7,3394.7,2.94572]
[1718393940610,0.55,3395.6,3394.7,2.94572]
[1718393940802,5.7824,3395.5,3394.7,2.94572]
[1718393941002,5.7824,3395.5,3394.8,2.94561]
[1718393941203,8.72749,3395.5,3394.8,2.94561]
[1718393941451,8.72749,3395.5,3394.9,2.94559]
[1718393944714,0.55,3395.4,3394.6,2.94583]
[1718393945511,4.92867514,3395.4,3394.6,2.94583]
[1718393946421,2.94535,3395.2,3394.6,2.94583]
[1718393947452,2.94542,3395.1,3394.5,2.94591]
[1718393949657,2.94542,3395.1,3394.6,2.94584]
[1718393951400,2.94591,3394.6,3394.1,0.0555808]
[1718393951673,10.32500514,3395.0,3394.1,0.0555808]
[1718393951674,2.94581,3394.7,3394.1,0.0555808]
[1718393951974,2.94595,3394.5,3394.1,0.0555808]
[1718393952326,2.94613,3394.3,3394.1,0.0555808]
[1718393952922,2.94603,3394.4,3394.1,0.0555808]
[1718393953467,5.8924,3394.2,3394.1,0.0555808]
[1718393953850,6.4424,3394.2,3394.1,0.0555808]
[1718393954166,2.94609,3394.4,3394.1,0.0555808]
[1718393954343,2.94619,3394.3,3394.1,0.0555808]
[1718393954682,2.9462,3394.2,3394.1,0.0555808]
[1718393954880,12.047,3394.2,3394.1,0.0555808]
[1718393955176,12.597,3394.2,3394.1,0.0555808]
[1718393956580,6.4424,3394.2,3394.1,0.0555808]
[1718393958244,9.3886,3394.2,3394.1,0.0555808]
[1718393959360,6.4424,3394.2,3394.1,0.0555808]
[1718393960688,3.4962,3394.2,3394.1,0.0555808]
[1718393960983,6.2189,3394.7,3394.1,0.0555808]
[1718393960984,9.16468,3394.7,3394.1,0.0555808]
[1718393961141,2.94595,3394.5,3394.1,0.0555808]
[1718393961769,2.94603,3394.4,3394.1,0.0555808]
[1718393962774,2.94508,3395.5,3394.5,5.89174]
[1718393962978,2.94523,3395.4,3394.7,2.94568]
[1718393963271,6.2795,3395.9,3394.4,4.71498]
[1718393963272,2.94545,3395.1,3394.5,2.9459]
[1718393963493,2.94562,3394.9,3394.3,2.94603]
[1718393964500,0.55,3394.8,3394.3,2.94603]
[1718393965120,0.55,3394.8,3394.4,2.94601]
[1718393965423,0.55,3394.8,3394.3,2.94603]
[1718393965596,0.55,3394.8,3394.5,2.94593]
[1718393965781,0.55,3394.9,3394.5,3.535124]
[1718393965986,0.55,3394.9,3394.5,2.94593]
[1718393966610,3.0,3395.5,3394.4,2.94598]
[1718393966915,1.43344514,3395.4,3395.0,2.94545]
[1718393967081,1.43344514,3395.4,3395.1,2.94541]
[1718393967488,2.94483,3395.8,3395.2,2.9453]
[1718393967688,2.94483,3395.8,3394.9,2.94559]
[1718393967689,4.37836514,3395.7,3395.1,2.94541]
[1718393968311,2.94507,3395.5,3394.8,2.94566]
[1718393968524,2.94522,3395.4,3394.8,2.94566]
[1718393969026,2.94522,3395.4,3394.9,2.94558]
[1718393972743,2.94522,3395.4,3394.8,2.94566]
[1718393975314,2.94525,3395.3,3394.4,5.8086]
[1718393975529,2.94562,3394.9,3394.3,2.9461]
[1718393975748,2.94562,3394.9,3394.4,2.94602]
[1718393976281,2.94562,3394.9,3394.3,2.94609]
[1718393976442,2.9457,3394.8,3394.2,2.94618]
[1718393976605,2.94576,3394.8,3394.2,2.94619]
[1718393978009,2.94576,3394.8,3394.3,2.9461]
[1718393981274,2.94576,3394.8,3394.2,2.94618]
[1718393981639,2.94576,3394.8,3394.3,2.9461]
[1718393983530,2.94576,3394.8,3394.2,2.94618]
[1718393984164,2.94578,3394.7,3394.2,2.94618]
[1718393987472,2.94585,3394.6,3394.1,3.0018508]
[1718393987695,2.94579,3394.7,3394.1,3.86217188]
[1718393988457,2.94586,3394.6,3394.1,3.86217188]
[1718393990576,2.94579,3394.7,3394.1,3.86217188]
[1718393990796,5.9226,3395.1,3394.1,3.86217188]
[1718393990797,8.86804,3395.1,3394.4,2.94601]
[1718393991010,8.86804,3395.1,3394.5,3.62672966]
[1718393991599,8.86804,3395.1,3394.6,2.94585]
[1718393992444,3.4954,3395.2,3394.5,0.68084966]
[1718393992445,0.55,3395.2,3394.7,2.9457]
[1718393992587,3.0,3395.6,3395.1,2.94539]
[1718393993025,5.94499,3395.6,3395.1,2.94539]
[1718393994405,3.0,3395.6,3395.1,2.94539]
[1718393994835,2.94482,3395.8,3395.2,2.94533]
[1718393995124,3.0,3395.7,3395.2,2.94533]
[1718393995632,3.0,3395.7,3395.3,2.94523]
[1718393996291,3.0,3395.7,3395.2,2.9453]
[1718393997997,3.0,3395.7,3395.2,3.26351891]
[1718393998189,3.0,3395.9,3395.4,2.94509]
[1718394000293,2.94481,3395.8,3395.1,2.94535]
[1718394000493,2.94502,3395.6,3395.1,2.94541]
[1718394001338,2.94516,3395.4,3394.9,2.94558]
[1718394001638,2.94482,3395.8,3395.0,2.9455]
[1718394001639,2.94509,3395.5,3395.0,2.9455]
[1718394002705,1.43344514,3395.7,3395.1,2.94535]
[1718394002926,1.43344514,3395.7,3395.1,2.94539]
[1718394002927,3.49499,3395.6,3395.1,2.94539]
[1718394005344,0.21807894,3396.3,3395.2,1.82790328]
[1718394005543,0.21807894,3396.3,3395.8,2.94473]
[1718394006134,0.21807894,3396.3,3395.8,2.94478]
[1718394006365,0.21807894,3396.3,3395.4,2.9451]
[1718394006648,2.94982776,3396.1,3395.6,2.94497]
[1718394007052,2.94982776,3396.1,3395.4,2.94513]
[1718394007053,2.9447,3396.0,3395.4,2.94513]
[1718394007345,2.9447,3396.0,3395.5,2.94503]
[1718394008509,0.00526776,3396.1,3395.6,2.94497]
[1718394011357,0.00526776,3396.1,3395.7,2.94489]